bitfinex-derivatives/quotes_ETHF0:USTF0_20250918
["timestamp","ask_amount","ask_price","bid_price","bid_amount"]
[1758224403576,0.2005,4594.4,4594.3,0.4041]
[1758224403777,0.5058,4594.4,4594.3,0.7141]
[1758224404174,0.6995,4594.4,4594.3,0.7141]
[1758224404975,3.2078,4595.1,4594.4,0.39158]
[1758224405180,0.90173,4595.0,4594.9,0.5203]
[1758224405479,0.3942,4594.6,4594.5,0.9361]
[1758224405679,0.6995,4594.6,4594.5,0.9361]
[1758224405979,0.6995,4594.6,4594.5,1.32768]
[1758224406367,0.6995,4594.6,4594.5,0.9361]
[1758224406678,0.6995,4594.6,4594.5,0.7141]
[1758224406878,0.6995,4594.6,4594.5,0.9361]
[1758224408678,1.09107,4594.6,4594.5,0.9361]
[1758224409583,1.09107,4594.6,4594.5,1.32768]
[1758224409584,0.6995,4594.6,4594.5,1.32768]
[1758224410279,3.2078,4595.1,4595.0,0.4041]
[1758224410582,3.602,4595.1,4595.0,0.9351]
[1758224410888,3.9073,4595.1,4595.0,0.9351]
[1758224411578,3.9073,4595.1,4595.0,0.6251]
[1758224411882,3.9073,4595.1,4595.0,0.221]
[1758224412386,0.3942,4594.5,4594.4,1.10568]
[1758224412581,0.6995,4594.5,4594.4,1.32668]
[1758224414072,0.2005,4594.5,4594.4,1.32668]
[1758224415183,0.5058,4594.7,4594.6,0.79567]
[1758224415378,0.5058,4594.7,4594.6,1.10567]
[1758224415683,0.5058,4594.7,4594.6,0.7141]
[1758224415880,0.5058,4594.7,4594.6,1.10567]
[1758224416079,0.5058,4594.7,4594.6,0.7141]
[1758224416285,0.5058,4594.7,4594.6,1.10567]
[1758224417080,3.2078,4595.1,4595.0,0.3271]
[1758224417275,3.7136,4595.1,4595.0,1.0519]
[1758224417679,3.7136,4595.1,4595.0,1.44343]
[1758224417880,3.7136,4595.1,4595.0,1.0519]
[1758224418080,4.29883,4595.1,4595.0,0.4313]
[1758224419688,4.29883,4595.1,4595.0,0.2103]
[1758224419883,0.6995,4594.8,4594.7,0.2103]
[1758224420082,0.6995,4594.8,4594.7,0.7413]
[1758224420282,1.09105,4594.8,4594.7,0.7413]
[1758224420484,0.6995,4594.8,4594.7,0.9351]
[1758224420982,1.09105,4594.8,4594.7,0.9351]
[1758224421186,0.6995,4594.8,4594.7,1.32666]
[1758224421484,0.39154,4595.0,4594.7,0.221]
[1758224421687,0.5058,4594.8,4594.7,0.6251]
[1758224421887,0.2005,4594.8,4594.7,1.01666]
[1758224422090,0.69683,4595.1,4594.7,4.22446]
[1758224422382,0.2005,4594.9,4594.8,0.7141]
[1758224422586,1.09104,4594.9,4594.8,0.7141]
[1758224423285,0.6995,4594.6,4594.5,0.5203]
[1758224423482,0.6995,4594.6,4594.5,0.7413]
[1758224423686,0.6995,4594.6,4594.5,0.5203]
[1758224423887,0.6995,4594.6,4594.5,0.7413]
[1758224424088,0.6995,4594.6,4594.5,0.9351]
[1758224424682,1.09107,4594.6,4594.5,0.9351]
[1758224424886,0.6995,4594.6,4594.5,0.9351]
[1758224425590,1.09107,4594.6,4594.5,0.9351]
[1758224425788,0.6995,4594.6,4594.5,0.9351]
[1758224425989,0.39154,4594.9,4594.5,1.44348]
[1758224426290,1.09105,4594.8,4594.7,0.7141]
[1758224426888,0.6995,4594.8,4594.7,0.7141]
[1758224427188,0.5058,4595.0,4594.9,0.4041]
[1758224427389,1.09103,4595.0,4594.9,0.6251]
[1758224427590,1.21733,4595.0,4594.9,0.6251]
[1758224427987,0.8258,4595.0,4594.9,0.9267]
[1758224428286,0.39152,4595.2,4595.1,0.3016]
[1758224428590,1.09982,4595.2,4595.1,0.7121]
[1758224429787,0.7083,4595.2,4595.1,1.32463]
[1758224429988,0.2046,4595.2,4595.1,1.32463]
[1758224430194,0.5004,4595.2,4595.1,1.32463]
[1758224430891,0.5004,4595.2,4595.1,0.9331]
[1758224431491,1.09982,4595.2,4595.1,0.9331]
[1758224431685,1.09982,4595.2,4595.1,0.7121]
[1758224431994,0.7083,4594.7,4594.6,0.89318]
[1758224432292,0.7083,4594.7,4594.6,1.32468]
[1758224432491,0.5004,4595.1,4595.0,0.8298]
[1758224432687,0.2046,4595.1,4595.0,1.44234]
[1758224433496,0.2046,4595.1,4595.0,1.0508]
[1758224434292,0.5004,4595.1,4595.0,1.0508]
[1758224434692,0.2046,4595.1,4595.0,1.0508]
[1758224434896,0.5004,4595.1,4595.0,1.0508]
[1758224435095,0.5004,4595.1,4595.0,1.44234]
[1758224435289,0.5004,4595.1,4595.0,1.0508]
[1758224435483,0.2958,4595.4,4595.0,1.0508]
[1758224435689,0.5004,4595.4,4595.3,0.5016]
[1758224435890,0.7083,4595.4,4595.3,0.7121]
[1758224436497,0.7083,4595.4,4595.3,1.10362]
[1758224436698,0.7083,4595.4,4595.3,0.7121]
[1758224436888,1.09981,4595.4,4595.3,0.7121]
[1758224437086,0.7083,4595.4,4595.3,0.7121]
[1758224437287,0.7083,4595.4,4595.3,1.10362]
[1758224437686,1.09981,4595.4,4595.3,0.7121]
[1758224437890,0.7083,4595.4,4595.3,1.10362]
[1758224438294,0.7083,4595.4,4595.3,1.32462]
[1758224439200,0.5004,4595.4,4595.3,1.32462]
[1758224439596,3.5993,4595.6,4595.3,1.32462]
[1758224439799,0.5004,4595.5,4595.4,0.7121]
[1758224440003,1.0998,4595.5,4595.4,0.7121]
[1758224440301,0.7083,4595.5,4595.4,0.9331]
[1758224440696,0.7083,4595.5,4595.4,1.32461]
[1758224440888,1.09976,4596.0,4595.9,0.7121]
[1758224441089,0.7083,4596.0,4595.9,1.32457]
[1758224442806,0.7083,4596.0,4595.9,0.9331]
[1758224442997,1.09976,4596.0,4595.9,0.6315]
[1758224443199,0.4178,4595.5,4595.2,3.5094]
[1758224443400,0.7083,4595.3,4595.2,4.31142]
[1758224443601,0.7083,4595.3,4595.2,4.53242]
[1758224445413,0.2046,4595.3,4595.2,4.53242]
[1758224445604,0.2046,4595.3,4595.2,4.1409]
[1758224446111,0.2046,4595.3,4595.2,4.53242]
[1758224446306,0.2046,4595.3,4595.2,4.1409]
[1758224446507,1.09982,4595.3,4595.2,4.1409]
[1758224446712,0.7083,4595.3,4595.2,4.1409]
[1758224447715,0.2046,4595.3,4595.2,4.1409]
[1758224447916,1.0998,4595.5,4595.4,0.7121]
[1758224448211,0.39149,4595.7,4595.5,0.1177]
[1758224448421,1.09979,4595.7,4595.6,0.9331]
[1758224450517,1.09979,4595.7,4595.6,0.7121]
[1758224450718,1.09979,4595.7,4595.6,0.9331]
[1758224452012,0.89189,4595.7,4595.6,0.9331]
[1758224454821,0.5004,4595.7,4595.6,1.32459]
[1758224455023,3.9333,4596.1,4596.0,0.7016]
[1758224455222,4.32475,4596.1,4596.0,0.9226]
[1758224455916,4.32475,4596.1,4596.0,0.221]
[1758224457819,0.3915,4595.5,4595.4,0.7082]
[1758224458016,1.1032,4595.5,4595.4,1.1248]
[1758224458218,1.1032,4595.5,4595.4,1.3094]
[1758224458511,0.7117,4595.5,4595.4,1.3094]
[1758224458714,0.1971,4595.5,4595.4,1.3094]
[1758224458921,0.8941,4595.5,4595.4,0.9179]
[1758224459123,1.1032,4595.5,4595.4,0.9179]
[1758224460420,1.2265,4595.5,4595.4,0.1956]
[1758224460616,1.2265,4595.5,4595.4,0.4166]
[1758224461915,1.2265,4595.5,4595.4,0.7116]
[1758224464223,1.2265,4595.5,4595.4,0.4166]
[1758224464429,1.10321,4595.3,4595.2,0.2173]
[1758224464624,1.10321,4595.3,4595.2,0.4383]
[1758224465026,1.10321,4595.3,4595.2,0.4166]
[1758224465419,0.7117,4595.3,4595.2,0.7116]
[1758224465625,1.10321,4595.3,4595.2,0.9179]
[1758224467026,1.10321,4595.3,4595.2,0.6969]
[1758224467225,1.10321,4595.3,4595.2,0.9179]
[1758224467424,0.7117,4595.3,4595.2,0.9179]
[1758224467631,1.10321,4595.3,4595.2,0.9179]
[1758224470133,0.39151,4595.3,4595.2,0.9179]
[1758224470634,1.10321,4595.3,4595.2,0.6969]
[1758224470835,1.10321,4595.3,4595.2,0.9179]
[1758224471033,1.10321,4595.3,4595.2,0.6969]
[1758224471227,1.10323,4595.1,4595.0,0.0217]
[1758224471427,1.1033,4594.3,4594.2,2.14671653]
[1758224473533,1.1033,4594.3,4594.2,0.4166]
[1758224473835,1.1033,4594.3,4594.2,0.1956]
[1758224474031,0.3055,4593.7,4593.6,3.2078]
[1758224474239,0.7117,4593.7,4593.6,3.6244]
[1758224474437,0.7117,4593.7,4593.6,0.9179]
[1758224475625,0.7117,4593.7,4593.2,0.295]
[1758224475825,0.1233,4594.0,4593.2,0.295]
[1758224475826,0.7117,4593.3,4593.2,0.9146]
[1758224476133,1.22671,4593.0,4592.8,0.0217]
[1758224476330,1.22671,4593.0,4592.9,0.221]
[1758224476731,1.22671,4593.0,4592.8,0.0217]
[1758224477028,0.92943,4592.9,4592.8,0.0217]
[1758224477425,0.92943,4592.9,4592.8,0.2427]
[1758224477828,0.7117,4592.9,4592.8,0.221]
[1758224479138,0.51501,4593.0,4592.2,0.295]
[1758224479139,0.79797,4592.3,4592.2,0.295]
[1758224479430,0.7117,4592.3,4592.2,0.9179]
[1758224480335,0.79799,4592.0,4591.9,3.4034]
[1758224480528,1.10349,4592.0,4591.9,3.9194]
[1758224481029,1.10349,4592.0,4591.9,4.1257]
[1758224481540,1.22679,4592.0,4591.9,3.4034]
[1758224481729,0.39185,4591.4,4591.1,3.2295]
[1758224481935,0.3055,4591.6,4591.3,0.4019]
[1758224482234,0.69733,4591.6,4591.5,0.5268]
[1758224482435,1.10353,4591.6,4591.5,0.6969]
[1758224483038,1.10353,4591.6,4591.5,0.9179]
[1758224483427,0.79806,4591.2,4591.1,3.9264]
[1758224483638,1.10356,4591.2,4591.1,4.1474]
[1758224483940,1.10356,4591.2,4591.1,3.9264]
[1758224484134,1.10356,4591.2,4591.1,4.1474]
[1758224484738,0.1233,4591.0,4590.8,19.5353]
[1758224484941,0.6259,4591.0,4590.9,0.221]
[1758224485130,1.01778,4591.0,4590.9,0.221]
[1758224485334,1.01778,4591.0,4589.6,0.97998]
[1758224485335,0.39192,4590.6,4590.0,3.2078]
[1758224485529,0.3055,4590.4,4590.1,35.491]
[1758224485742,0.3055,4590.4,4590.1,35.70885]
[1758224485939,0.3055,4590.4,4590.1,35.88295]
[1758224486240,0.3055,4590.4,4590.2,0.21785]
[1758224486540,0.3055,4590.4,4590.2,0.60979]
[1758224486740,0.1233,4590.5,4590.0,3.2078]
[1758224486929,0.1233,4590.5,4590.1,35.70985]
[1758224487133,0.3055,4590.4,4590.2,0.39194]
[1758224487334,0.3055,4590.4,4590.2,0.60979]
[1758224487536,0.69743,4590.4,4590.3,35.272]
[1758224487737,0.69743,4590.4,4590.3,35.493]
[1758224488452,0.3055,4590.4,4590.3,35.493]
[1758224490436,0.3055,4590.4,4590.3,35.272]
[1758224490638,0.2923,4590.2,4590.0,3.2078]
[1758224490836,0.2923,4590.2,4590.1,35.497]
[1758224491043,0.68424,4590.2,4590.1,35.497]
[1758224491246,0.89505,4590.1,4590.0,38.4838]
[1758224491436,0.89505,4590.1,4590.0,38.7048]
[1758224491639,0.5031,4590.1,4590.0,38.7048]
[1758224492038,0.5031,4590.1,4590.0,39.09676]
[1758224493241,0.89505,4590.1,4590.0,38.7048]
[1758224493443,1.08675,4590.1,4590.0,3.4288]
[1758224493641,1.08675,4590.1,4590.0,0.221]
[1758224494744,0.6948,4590.1,4590.0,0.221]
[1758224496246,0.2923,4590.1,4590.0,0.221]
[1758224497146,0.5031,4590.1,4590.0,0.221]
[1758224498344,0.6948,4590.1,4590.0,0.221]
[1758224498544,1.08675,4590.1,4590.0,0.221]
[1758224499046,0.5031,4589.8,4589.7,35.66999]
[1758224499246,0.2923,4589.8,4589.7,35.89099]
[1758224500139,0.2923,4589.8,4589.7,35.499]
[1758224500344,0.2923,4589.8,4589.7,35.89099]
[1758224502339,0.5031,4589.8,4589.7,0.39199]
[1758224502545,0.5031,4589.8,4589.7,0.61299]
[1758224502744,0.5031,4589.8,4589.7,0.39199]
[1758224502952,0.6948,4589.8,4589.7,0.221]
[1758224503147,0.2923,4589.7,4589.6,35.677]
[1758224503348,0.2923,4589.7,4589.6,35.898]
[1758224503852,0.1249,4590.0,4589.9,0.74877]
[1758224504046,0.1249,4590.0,4589.9,0.96977]
[1758224506050,0.628,4590.0,4589.9,0.88477]
[1758224506254,0.628,4590.0,4589.9,0.96977]
[1758224506654,0.628,4590.0,4589.9,0.88477]
[1758224507252,0.628,4590.0,4589.9,0.4928]
[1758224507556,0.8197,4590.0,4589.9,0.88477]
[1758224508854,0.628,4590.0,4589.9,0.96977]
[1758224510453,0.628,4590.0,4589.9,0.88477]
[1758224513161,0.8197,4590.0,4589.9,0.88477]
[1758224513563,0.8197,4590.0,4589.9,0.74887]
[1758224513758,0.8197,4590.0,4589.9,0.3569]
[1758224514062,0.8197,4590.0,4589.7,0.39199]
[1758224514252,0.6948,4589.9,4589.8,0.221]
[1758224514761,0.6948,4589.9,4589.8,0.61298]
[1758224514962,0.6948,4589.9,4589.8,0.221]
[1758224515662,0.6948,4589.9,4589.8,0.61298]
[1758224516164,0.6948,4589.9,4589.8,0.221]
[1758224516758,0.4025,4589.9,4589.5,0.392]
[1758224517060,0.4025,4589.9,4589.4,3.2078]
[1758224517061,0.8247,4589.5,4589.4,3.2078]
[1758224517361,0.8247,4589.5,4589.4,0.221]
[1758224517764,0.4321,4589.0,4588.9,35.69696]
[1758224517963,0.833,4589.0,4588.9,0.2369]
[1758224518151,0.833,4589.0,4588.9,0.221]
[1758224518855,0.2055,4588.7,4588.6,0.39208]
[1758224519058,0.7085,4588.7,4588.6,0.74958]
[1758224519260,0.7085,4588.7,4588.6,0.221]
[1758224519564,0.4009,4588.7,4588.5,0.39209]
[1758224519757,0.4009,4588.7,4588.6,0.221]
[1758224520159,0.7085,4588.7,4588.6,0.3575]
[1758224520860,0.7085,4588.7,4588.6,0.1365]
[1758224521064,0.7085,4588.7,4588.6,0.3575]
[1758224521256,0.4009,4588.7,4588.6,0.221]
[1758224521457,0.7085,4588.7,4588.6,0.221]
[1758224521860,0.7085,4588.7,4588.6,0.3575]
[1758224523260,0.3076,4588.6,4588.5,0.39209]
[1758224523466,0.7085,4588.6,4588.5,0.61309]
[1758224523965,0.7085,4588.6,4588.5,0.74959]
[1758224524269,0.7085,4588.6,4588.5,0.61309]
[1758224524666,0.7085,4588.6,4588.5,0.74959]
[1758224525068,0.7085,4588.6,4588.5,0.88609]
[1758224528069,0.503,4588.6,4588.5,0.88609]
[1758224528270,0.1954,4589.0,4588.9,0.78946]
[1758224528474,0.1245,4589.5,4588.9,0.78946]
[1758224528475,0.5254,4589.5,4589.4,0.6927]
[1758224528676,0.5254,4589.5,4589.4,1.30571]
[1758224528973,0.5254,4589.5,4589.4,0.78941]
[1758224529279,0.5254,4589.5,4589.4,1.01041]
[1758224529480,0.5254,4589.5,4589.4,0.6184]
[1758224529769,0.5254,4589.5,4589.4,0.221]
[1758224529970,0.4009,4588.7,4588.6,4.29258]
[1758224530167,0.4009,4588.7,4588.6,1.30578]
[1758224530364,0.7085,4588.7,4588.6,1.30578]
[1758224531167,0.7085,4588.7,4588.6,1.08478]
[1758224531368,0.7085,4588.7,4588.6,1.30578]
[1758224532372,0.3076,4588.7,4588.6,1.30578]
[1758224532577,0.3175,4589.0,4588.9,1.08476]
[1758224532771,0.3175,4589.0,4588.9,1.30576]
[1758224533077,0.6251,4589.0,4588.9,1.30576]
[1758224534570,0.503,4589.0,4588.9,1.30576]
[1758224537570,0.8306,4589.0,4588.9,1.01046]
[1758224538177,0.8306,4589.0,4588.9,0.39206]
[1758224538378,0.8306,4589.0,4588.9,0.61306]
[1758224539276,0.523,4588.5,4588.4,0.0217]
[1758224539477,0.523,4588.5,4588.4,0.6348]
[1758224539478,0.8306,4588.5,4588.4,0.6348]
[1758224539682,0.8306,4588.5,4588.4,0.221]
[1758224540185,0.8306,4588.5,4588.4,0.416]
[1758224541274,0.8306,4588.5,4588.4,0.8081]
[1758224542277,0.8306,4588.5,4588.4,1.0848]
[1758224542478,0.8306,4588.5,4588.4,1.3058]
[1758224543287,0.8306,4588.5,4588.4,1.0848]
[1758224543584,0.8306,4588.5,4588.4,1.3058]
[1758224544184,0.503,4588.5,4588.4,1.3058]
[1758224544778,0.8306,4588.5,4588.4,1.0848]
[1758224545079,0.8306,4588.5,4588.4,1.3058]
[1758224546385,0.8306,4588.5,4588.4,3.25691653]
[1758224547289,0.503,4588.5,4588.4,1.3058]
[1758224547487,0.503,4588.5,4588.4,3.26485691]
[1758224548377,0.8313,4588.5,4588.4,0.195]
[1758224548586,0.3192,4588.4,4588.1,1.95934056]
[1758224548890,0.725,4588.3,4588.2,0.81361]
[1758224549388,0.725,4588.3,4588.2,0.4215]
[1758224552085,0.725,4588.3,4588.1,0.39212]
[1758224552393,0.725,4588.3,4588.2,0.221]
[1758224553189,0.725,4588.3,4588.2,0.4215]
[1758224553585,0.725,4588.3,4588.2,0.81362]
[1758224556789,0.725,4588.3,4588.2,1.01652]
[1758224556991,0.3192,4588.3,4588.2,1.31602]
[1758224557490,0.5203,4588.3,4588.2,1.31602]
[1758224557994,0.725,4588.3,4588.2,1.31602]
[1758224561287,0.1236,4588.5,4588.2,1.31602]
[1758224561491,3.2078,4589.6,4589.5,0.4181]
[1758224561793,3.3304,4589.6,4589.5,1.0425]
[1758224562686,3.2078,4589.6,4589.5,1.0425]
[1758224562988,3.2691,4589.6,4589.5,1.0425]
[1758224563186,3.3304,4589.6,4589.5,1.0425]
[1758224564397,3.3304,4589.6,4589.5,0.8396]
[1758224564602,3.3687,4589.6,4589.5,0.8396]
[1758224565096,3.3304,4589.6,4589.5,0.6186]
[1758224565298,3.3304,4589.6,4589.5,0.8396]
[1758224565592,3.3304,4589.6,4589.5,1.0425]
[1758224568191,0.1226,4589.6,4589.5,1.0425]
[1758224568390,3.2691,4590.1,4590.0,1.21346]
[1758224568589,3.2078,4590.1,4590.0,1.43446]
[1758224568895,0.39189,4590.8,4590.1,0.2995]
[1758224568896,3.59969,4590.8,4590.1,0.2995]
[1758224569194,3.2078,4590.8,4590.7,0.2995]
[1758224569383,3.2691,4590.8,4590.7,1.3158]
[1758224569589,3.3304,4590.8,4590.7,1.3158]
[1758224569891,0.1226,4590.8,4590.7,1.3158]
[1758224570689,3.2691,4591.3,4591.2,1.09476]
[1758224571001,3.3687,4592.1,4592.0,0.69129]
[1758224571196,3.3687,4592.1,4592.0,1.03089]
[1758224571388,7.3687,4592.1,4592.0,1.03089]
[1758224571587,7.58647001,4592.1,4592.0,1.03089]
[1758224571788,3.2691,4592.1,4592.0,1.23139]
[1758224572095,3.2078,4592.1,4592.0,1.43429]
[1758224572283,0.1609,4592.8,4592.7,0.39173]
[1758224572487,0.1609,4592.8,4592.7,0.61273]
[1758224572695,0.1609,4592.8,4592.7,0.91223]
[1758224573388,0.1609,4592.8,4592.7,0.61273]
[1758224573995,0.0605,4591.7,4591.3,0.97963]
[1758224574297,0.1588,4591.7,4591.6,0.39182]
[1758224574486,0.1588,4591.7,4591.6,0.69322]
[1758224574997,0.0605,4591.7,4591.6,1.10082]
[1758224575990,0.121,4591.7,4591.6,1.32182]
[1758224578294,3.2078,4591.8,4591.6,1.02042]
[1758224578505,3.2677,4591.8,4591.7,0.6855]
[1758224578888,3.2078,4591.8,4591.7,0.6855]
[1758224579090,0.1198,4593.2,4593.1,0.1991]
[1758224579393,3.3276,4593.8,4593.7,0.39165]
[1758224579597,3.3276,4593.8,4593.7,1.10415]
[1758224579801,3.2078,4593.8,4593.7,1.29815]
[1758224580097,3.2677,4593.8,4593.7,1.29815]
[1758224580299,0.0599,4593.8,4593.7,1.29815]
[1758224580993,0.1198,4594.4,4594.3,0.68399]
[1758224581192,0.0375,4594.3,4594.2,0.3916]
[1758224581389,0.1573,4594.1,4594.0,0.39162]
[1758224581604,0.1573,4593.6,4593.5,3.2078]
[1758224581802,0.1573,4593.6,4593.5,3.4288]
[1758224582001,4.1573,4593.6,4593.5,3.4288]
[1758224582394,4.1573,4593.6,4593.5,3.7212]
[1758224582701,0.0599,4593.6,4593.5,4.2305]
[1758224583004,0.1198,4594.1,4594.0,0.80022]
[1758224583200,0.1198,4594.1,4594.0,1.02122]
[1758224583501,0.1573,4594.1,4594.0,1.02122]
[1758224584189,0.1198,4594.1,4594.0,1.02122]
[1758224585005,3.2677,4594.6,4594.5,0.99928]
[1758224585303,0.1198,4595.1,4595.0,0.99924]
[1758224585496,0.1198,4595.1,4595.0,1.22024]
[1758224585697,0.1198,4595.1,4595.0,1.41424]
[1758224586093,3.2078,4595.9,4595.5,0.1162]
[1758224586294,0.1198,4595.7,4595.6,1.10398]
[1758224586499,0.1198,4595.7,4595.6,1.29798]
[1758224586702,3.2078,4595.9,4595.8,0.39147]
[1758224586900,3.2677,4595.9,4595.8,1.07697]
[1758224588192,3.3276,4595.9,4595.8,1.07697]
[1758224588802,3.3276,4595.9,4595.8,1.29797]
[1758224590398,3.3276,4595.9,4595.8,1.07697]
[1758224590605,3.3276,4595.9,4595.8,1.10397]
[1758224590999,3.3276,4595.9,4595.8,1.29797]
[1758224593099,3.3276,4595.9,4595.8,1.10397]
[1758224593516,3.3276,4595.9,4595.8,0.88297]
[1758224593701,3.3276,4595.9,4595.8,1.10397]
[1758224594410,3.3276,4595.9,4595.8,1.29797]
[1758224596104,3.2677,4595.9,4595.8,1.29797]
[1758224596303,0.022,4596.3,4596.2,1.07693]
[1758224596605,0.022,4596.3,4596.2,1.29793]
[1758224597005,0.0819,4596.3,4596.2,1.29793]
[1758224597697,0.022,4596.3,4596.2,1.29793]
[1758224597905,0.0819,4596.3,4596.2,1.29793]
[1758224600609,0.022,4596.3,4596.2,1.29793]
[1758224600915,3.3276,4597.2,4597.1,0.88286]
[1758224601112,3.3276,4597.2,4597.1,1.10386]
[1758224601805,7.3276,4597.2,4597.1,1.10386]
[1758224602005,3.3276,4597.2,4597.1,1.29786]
[1758224606404,3.84130196,4597.2,4597.1,1.29786]
[1758224606607,3.2078,4597.8,4597.7,0.39131]
[1758224606809,4.06701492,4597.8,4597.7,1.10381]
[1758224607006,3.84132321,4597.8,4597.7,1.10381]
[1758224607209,3.84132321,4597.8,4597.7,1.29781]
[1758224607711,3.78142321,4597.8,4597.7,1.29781]
[1758224608014,3.84132321,4597.8,4597.7,1.29781]
[1758224608708,4.23262321,4597.8,4597.7,0.6855]
[1758224608904,4.23262321,4597.8,4597.7,1.29781]
[1758224610213,4.45665968,4597.8,4597.7,0.6855]
[1758224610409,0.54756,4597.1,4597.0,0.4284]
[1758224610720,4.23188321,4597.1,4597.0,0.8591]
[1758224611017,4.23188321,4597.1,4597.0,1.0659]
[1758224611617,4.23188321,4597.1,4597.0,0.8449]
[1758224611821,4.23188321,4597.1,4597.0,1.0659]
[1758224612207,4.45604674,4597.1,4597.0,0.8449]
[1758224612411,4.45604674,4597.1,4597.0,1.0659]
[1758224616026,4.45604674,4597.1,4597.0,0.8449]
[1758224616318,4.45604674,4597.1,4597.0,1.0659]
[1758224617522,4.45604674,4597.1,4597.0,0.8449]
[1758224617718,4.45604674,4597.1,4597.0,1.0659]
[1758224618115,4.45604674,4597.1,4597.0,0.6381]
[1758224618421,4.48735012,4597.1,4597.0,0.6494]
[1758224618623,4.45015012,4597.1,4597.0,0.8591]
[1758224619429,4.11288321,4597.1,4597.0,1.0659]
[1758224619615,4.23188321,4597.1,4597.0,0.8449]
[1758224619811,3.84052321,4597.1,4597.0,1.0659]
[1758224620013,3.72152321,4597.1,4597.0,1.0659]
[1758224620419,0.51372321,4597.1,4597.0,1.0659]
[1758224620724,0.90506321,4597.3,4597.0,1.45727]
[1758224620921,0.51372321,4597.2,4597.1,0.3122]
[1758224621119,3.2078,4598.0,4597.2,0.3122]
[1758224621420,3.71808,4598.0,4597.9,0.5219]
[1758224621625,3.71808,4598.0,4597.9,0.9497]
[1758224621626,4.45287058,4598.0,4597.9,0.9497]
[1758224621927,4.45287058,4598.0,4597.9,0.7287]
[1758224622118,4.45287058,4598.0,4597.9,0.9497]
[1758224624628,4.45287058,4598.0,4597.9,1.34099]
[1758224624629,4.06159058,4598.0,4597.9,1.34099]
[1758224624817,3.78375534,4598.0,4597.9,1.34099]
[1758224626620,3.84325534,4598.0,4597.9,1.34099]
[1758224628429,3.3268,4598.0,4597.9,1.34099]
[1758224629122,3.71808,4598.0,4597.9,1.34099]
[1758224629426,3.3268,4598.0,4597.9,1.34099]
[1758224629627,3.71808,4598.0,4597.9,1.34099]
[1758224630231,4.23487333,4598.0,4597.9,1.34099]
[1758224630431,3.71808,4598.0,4597.9,1.34099]
[1758224631730,3.2078,4598.0,4597.9,1.34099]
[1758224632032,3.2673,4598.0,4597.9,1.34099]
[1758224632428,3.2078,4598.0,4597.9,1.34099]
[1758224633930,0.0595,4598.4,4598.3,1.11995]
[1758224634626,0.0595,4598.4,4598.3,0.7287]
[1758224634827,0.119,4598.4,4598.3,0.7287]
[1758224635225,0.67277198,4598.4,4598.3,0.3122]
[1758224635424,0.1559,4598.4,4598.3,0.5282]
[1758224635830,0.119,4598.4,4598.3,0.3122]
[1758224636037,0.50931,4597.7,4597.6,0.2285]
[1758224636328,0.45031,4597.7,4597.6,0.6343]
[1758224636534,0.45031,4597.7,4597.6,0.7082]
[1758224636732,0.50931,4597.7,4597.6,0.7227]
[1758224637936,0.50931,4597.7,4597.6,0.5017]
[1758224638136,0.50931,4597.7,4597.6,0.9292]
[1758224640737,0.50931,4597.7,4597.6,0.7082]
[1758224641128,0.50931,4597.7,4597.6,0.9292]
[1758224642439,0.50931,4597.7,4597.6,0.7082]
[1758224642638,0.50931,4597.7,4597.6,0.9292]
[1758224642839,0.50931,4597.7,4597.6,0.7082]
[1758224643138,0.51031,4597.6,4597.5,0.1159]
[1758224643341,3.71811,4597.6,4597.5,0.8326]
[1758224643641,3.75531,4597.6,4597.5,0.641]
[1758224645136,3.75531,4597.6,4597.4,0.0217]
[1758224645137,0.54752,4597.5,4597.4,0.3258]
[1758224645331,0.54752,4597.5,4597.4,0.2427]
[1758224645530,0.54752,4597.5,4597.4,0.221]
[1758224646044,0.54752,4597.5,4597.4,0.5251]
[1758224646344,0.39132,4597.5,4597.4,0.926]
[1758224646638,0.45082,4597.5,4597.4,0.926]
[1758224649643,0.51032,4597.5,4597.4,0.926]
[1758224649936,0.54752,4597.5,4597.4,0.5251]
[1758224650242,0.54752,4597.5,4597.4,0.3041]
[1758224650443,0.54753,4597.3,4597.2,0.3258]
[1758224650645,0.54753,4597.3,4597.2,0.5468]
[1758224651238,0.54753,4597.3,4597.2,0.5251]
[1758224651544,0.54753,4597.3,4597.2,0.3041]
[1758224651740,0.54755,4597.1,4597.0,0.4203]
[1758224651945,0.51039,4596.6,4596.5,0.6116]
[1758224652145,3.71819,4596.6,4596.5,0.8326]
[1758224653741,3.71819,4596.6,4596.5,0.6116]
[1758224653943,3.71819,4596.6,4596.5,0.8326]
[1758224654647,3.71819,4596.6,4596.5,0.6116]
[1758224654842,3.71819,4596.6,4596.5,0.8326]
[1758224656338,3.71819,4596.6,4596.5,1.0419]
[1758224657641,3.71819,4596.6,4596.5,0.8326]
[1758224659148,3.71819,4596.6,4596.5,0.6116]
[1758224659346,3.75539,4596.6,4596.5,0.5251]
[1758224659544,3.75539,4596.6,4596.5,0.3041]
[1758224659844,0.54761,4596.4,4596.3,0.0217]
[1758224660348,0.54762,4596.2,4596.1,0.4621]
[1758224660945,0.51042,4596.2,4596.1,0.6537]
[1758224661337,0.71041808,4596.2,4596.1,0.6537]
[1758224661950,0.65091808,4596.2,4596.1,0.863]
[1758224663050,0.65091808,4596.2,4596.1,0.926]